bitfinex/quotes_ETHUSD_20260131
["timestamp","ask_amount","ask_price","bid_price","bid_amount"]
[1769885385257,0.01276188,2366.7,2365.4,0.0008]
[1769885385258,0.01276188,2366.5,2365.4,0.0008]
[1769885385455,0.01276188,2366.5,2364.7,0.1024]
[1769885385682,0.01276188,2366.5,2364.7,13.05309125]
[1769885385859,0.01276188,2366.0,2364.7,12.95069125]
[1769885386049,0.01276188,2366.1,2363.8,1.05761908]
[1769885386050,0.01276188,2365.7,2363.8,1.05761908]
[1769885386248,0.01276188,2366.1,2363.8,1.05761908]
[1769885386249,0.01276188,2366.1,2364.5,0.0008]
[1769885386546,0.2335703,2366.9,2363.8,1.05761908]
[1769885386547,0.01276188,2367.4,2365.1,0.1024]
[1769885386748,0.01276188,2366.9,2365.1,0.1024]
[1769885387172,0.01276188,2366.9,2365.3,0.1024]
[1769885387490,0.01276188,2367.7,2365.3,13.05309125]
[1769885387674,0.24713218,2367.6,2365.3,13.05309125]
[1769885387981,0.24713218,2367.6,2365.3,0.1024]
[1769885388370,0.01356188,2367.6,2365.3,0.1024]
[1769885388552,0.01276188,2367.9,2365.9,12.95069125]
[1769885388875,0.01276188,2368.5,2366.2,13.28666155]
[1769885389087,0.01276188,2368.8,2366.6,14.10945903]
[1769885389281,0.01276188,2368.6,2366.9,13.18426155]
[1769885389479,0.01276188,2368.9,2367.0,13.05309125]
[1769885389850,0.01276188,2368.9,2366.6,1.05636778]
[1769885390056,0.01276188,2368.9,2365.9,12.95069125]
[1769885390057,0.01276188,2368.9,2365.8,4.22677615]
[1769885390257,1.06793049,2369.3,2366.5,1.05640768]
[1769885390258,0.01276188,2367.3,2366.5,1.05640768]
[1769885390456,0.01276188,2367.0,2365.2,4.22787129]
[1769885390753,0.01276188,2367.4,2366.5,1.05640587]
[1769885390950,0.01276188,2367.3,2366.5,1.05640587]
[1769885391183,0.01276188,2367.3,2366.1,4.22564969]
[1769885391184,0.01276188,2367.7,2366.1,12.95069125]
[1769885391381,0.01276188,2368.0,2366.1,12.95069125]
[1769885391565,0.01276188,2369.0,2366.4,12.95069125]
[1769885391566,0.01276188,2368.3,2366.4,12.95069125]
[1769885392078,0.01276188,2368.3,2365.5,0.1024]
[1769885392285,0.01276188,2368.3,2364.9,15.67192799]
[1769885392286,0.01276188,2368.1,2366.1,0.1024]
[1769885392698,0.01276188,2368.1,2366.2,0.1024]
[1769885393059,0.01276188,2368.1,2366.4,0.1024]
[1769885393284,0.01276188,2367.6,2366.3,1.05650171]
[1769885393601,0.01276188,2368.2,2366.4,0.1024]
[1769885393887,0.01276188,2368.2,2366.4,0.1032]
[1769885394699,0.0824617,2371.1,2368.9,12.95069125]
[1769885394992,0.0824617,2371.1,2368.0,0.1024]
[1769885395284,0.01276188,2369.7,2368.2,1.15805408]
[1769885395490,0.01276188,2369.9,2368.6,0.1024]
[1769885395688,0.01276188,2369.6,2368.3,0.1024]
[1769885395889,0.01276188,2369.6,2368.4,0.0008]
[1769885396191,0.01276188,2370.6,2368.6,13.47098155]
[1769885396487,0.01276188,2370.8,2369.2,0.0008]
[1769885396686,0.01276188,2371.8,2368.6,13.28666155]
[1769885396687,0.01276188,2371.3,2369.7,0.1024]
[1769885396902,0.01276188,2372.0,2370.1,0.1024]
[1769885397064,0.01276188,2372.0,2370.0,0.2335703]
[1769885397065,0.01276188,2372.0,2370.0,1.05565232]
[1769885397267,0.01276188,2371.5,2370.1,0.1024]
[1769885397499,0.01276188,2371.5,2370.0,1.05565232]
[1769885397708,0.01276188,2370.3,2369.2,4.22067009]
[1769885397993,0.01276188,2370.3,2367.0,0.01276188]
[1769885397994,0.01276188,2370.3,2368.7,0.0008]
[1769885398191,0.01276188,2370.3,2368.2,4.22249976]
[1769885398392,0.01276188,2370.3,2367.5,0.0008]
[1769885398699,0.01276188,2370.3,2368.3,0.1024]
[1769885398876,0.01276188,2370.3,2367.5,0.0008]
[1769885399196,0.01276188,2368.5,2367.8,0.1024]
[1769885399377,0.01276188,2369.5,2367.8,0.1024]
[1769885399578,0.01276188,2370.3,2368.0,0.1024]
[1769885399779,0.01276188,2370.3,2368.2,0.1024]
[1769885400081,0.01276188,2369.2,2368.2,0.1024]
[1769885400286,0.01276188,2369.2,2367.7,4.22333352]
[1769885400287,0.01276188,2369.3,2368.3,1.05486944]
[1769885400487,0.01276188,2369.3,2368.4,1.05486944]
[1769885400698,0.01276188,2369.3,2367.7,4.22333352]
[1769885400877,0.01276188,2369.3,2367.8,1.05486944]
[1769885401080,0.01276188,2369.9,2367.9,0.1024]
[1769885401390,0.01276188,2370.8,2368.7,0.1024]
[1769885401699,0.01276188,2372.3,2369.9,12.90940105]
[1769885401886,0.01276188,2372.3,2369.8,0.24633218]
[1769885401887,0.01276188,2372.4,2370.6,0.0008]
[1769885402087,0.01276188,2372.8,2370.6,0.0008]
[1769885402088,0.01276188,2372.2,2370.6,0.0008]
[1769885402401,0.01276188,2373.0,2370.8,0.1024]
[1769885402605,0.01276188,2372.3,2370.9,0.2335703]
[1769885402824,0.01276188,2372.8,2371.1,0.1024]
[1769885403267,0.01276188,2372.7,2371.2,2.10918792]
[1769885403469,0.01276188,2372.7,2371.2,1.05431848]
[1769885403786,0.01276188,2371.8,2371.1,4.21727395]
[1769885403987,0.01276188,2371.8,2371.2,1.05431848]
[1769885404167,0.01276188,2373.1,2371.2,1.05431848]
[1769885404168,0.01276188,2372.1,2371.3,0.1024]
[1769885404368,0.01276188,2372.7,2371.3,1.15726944]
[1769885404579,0.01276188,2372.7,2371.2,1.05431848]
[1769885404769,0.01276188,2372.7,2370.8,4.21727395]
[1769885404770,0.01276188,2372.7,2370.3,1.0546916]
[1769885405099,0.01276188,2372.7,2368.7,9.31679325]
[1769885405100,12.92082271,2371.5,2367.1,9.31679325]
[1769885405393,14.31128938,2370.8,2368.5,0.0008]
[1769885405695,13.25679301,2371.7,2368.6,1.05566944]
[1769885405897,0.2335703,2371.5,2368.6,1.05566944]
[1769885406102,12.92082271,2371.7,2368.6,1.05566944]
[1769885406103,0.2335703,2371.1,2368.6,1.05566944]
[1769885406275,0.2335703,2370.9,2368.6,1.05566944]
[1769885406472,0.1024,2371.2,2367.2,1.05610003]
[1769885406473,12.92082271,2370.4,2367.2,1.05610003]
[1769885406810,0.13213088,2370.3,2367.3,1.05646944]
[1769885406968,0.1024,2370.5,2367.3,1.05646944]
[1769885407169,1.05480781,2370.1,2367.4,0.21125695]
[1769885407370,1.05449637,2370.8,2367.5,1.0559662]
[1769885407578,0.2335703,2370.2,2367.5,2.11163564]
[1769885407785,0.001,2369.9,2367.5,2.11163564]
[1769885407991,0.001,2369.9,2367.5,1.05566944]
[1769885407992,0.1024,2369.7,2367.5,1.05566944]
[1769885408180,0.2335703,2369.5,2367.5,1.05566944]
[1769885408381,0.13217561,2369.6,2367.5,1.05566944]
[1769885408382,0.001,2369.9,2367.6,0.21116773]
[1769885408585,0.01276188,2369.6,2367.7,0.1024]
[1769885408800,0.001,2369.9,2368.0,0.2335703]
[1769885408979,0.01276188,2370.5,2368.3,0.1024]
[1769885409182,0.01276188,2373.4,2369.3,0.24633218]
[1769885409183,0.0008,2371.1,2369.3,0.24633218]
[1769885409497,0.01276188,2373.1,2369.3,0.24633218]
[1769885409498,0.01276188,2372.3,2369.9,0.0008]
[1769885409699,0.01276188,2372.3,2369.9,0.1032]
[1769885409903,0.01276188,2372.3,2370.1,0.1024]
[1769885410399,0.01276188,2372.3,2370.2,1.05466944]
[1769885410597,0.01276188,2372.3,2369.9,0.0008]
[1769885410598,0.01276188,2372.3,2370.0,1.05466944]
[1769885410899,0.01276188,2372.7,2370.2,0.24633218]
[1769885410900,0.01276188,2372.6,2370.2,0.24633218]
[1769885411103,0.01276188,2372.7,2370.2,0.24633218]
[1769885411104,0.01276188,2372.7,2370.7,0.1024]
[1769885411295,0.01276188,2373.3,2370.7,0.1024]
[1769885411296,0.0008,2374.1,2371.1,0.1024]
[1769885411494,0.01276188,2374.5,2371.6,0.0008]
[1769885411678,0.01276188,2373.2,2371.7,1.05466944]
[1769885411879,0.01276188,2374.5,2371.8,0.1024]
[1769885412175,0.01276188,2374.6,2371.8,0.01276188]
[1769885412408,0.01276188,2374.8,2372.1,0.01276188]
[1769885412600,0.01276188,2375.1,2372.4,13.31859386]
[1769885412801,0.001,2375.3,2372.4,13.31859386]
[1769885412802,0.01376188,2375.3,2373.0,9.31679325]
[1769885413114,0.01376188,2375.3,2373.2,0.1024]
[1769885413115,0.01276188,2375.0,2373.2,0.1024]
[1769885413276,0.01276188,2375.7,2373.7,0.0008]
[1769885413475,0.01276188,2376.5,2373.3,13.85168914]
[1769885413476,0.0008,2377.0,2374.6,12.79830356]
[1769885413689,0.01276188,2376.7,2375.0,0.2335703]
[1769885413906,0.01276188,2375.8,2374.8,0.1024]
[1769885414132,0.01276188,2374.7,2372.9,4.21354232]
[1769885414308,0.01276188,2374.7,2372.5,14.97148174]
[1769885414309,0.01276188,2374.5,2373.4,1.05466944]
[1769885414697,0.01276188,2373.5,2373.1,0.28274649]
[1769885415005,0.01276188,2372.6,2371.9,0.0008]
[1769885415204,0.01276188,2372.6,2370.9,1.05466944]
[1769885415406,0.01276188,2372.6,2370.3,1.05466944]
[1769885415609,0.01276188,2371.9,2370.1,5.273776]
[1769885415807,0.01276188,2371.9,2370.5,1.05460788]
[1769885415808,0.01276188,2371.5,2370.5,1.05460788]
[1769885416008,0.01276188,2371.5,2370.0,0.28298498]
[1769885416009,0.01276188,2371.3,2370.0,0.28298498]
[1769885416219,0.01276188,2371.3,2368.2,0.28297605]
[1769885416384,0.01276188,2371.7,2368.8,0.0008]
[1769885416385,0.01276188,2370.4,2368.8,0.0008]
[1769885416586,0.01276188,2371.0,2368.8,1.05617761]
[1769885416789,0.01276188,2371.0,2368.9,1.05466944]
[1769885417292,0.01276188,2371.3,2369.0,1.05529759]
[1769885417725,0.01276188,2371.3,2368.9,5.27585981]
[1769885417726,0.1024,2371.1,2369.1,1.05466944]
[1769885418006,0.01276188,2370.5,2368.9,2.11001025]
[1769885418208,0.01276188,2370.9,2368.9,2.11001025]
[1769885418209,0.01276188,2371.4,2369.1,0.01276188]
[1769885418407,1.45852965,2372.5,2369.1,0.01276188]
[1769885418408,0.01276188,2372.3,2369.4,0.0008]
[1769885418813,0.01276188,2372.3,2369.6,0.1024]
[1769885419015,0.01276188,2372.3,2369.8,0.1024]
[1769885419188,0.01276188,2372.3,2369.0,1.05529759]
[1769885419189,0.2335703,2371.7,2369.0,1.05529759]
[1769885419389,0.001,2370.3,2368.3,5.27708533]
[1769885420204,0.001,2370.3,2368.3,1.05466944]
[1769885420514,0.2335703,2369.9,2367.5,0.0011]
[1769885420709,0.2335703,2369.5,2367.5,1.05576944]
[1769885420885,0.2335703,2369.3,2366.6,0.0011]
[1769885421200,12.78259745,2368.9,2366.6,1.05466944]
[1769885421389,0.1024,2368.5,2366.6,1.05466944]
[1769885421586,0.2335703,2368.3,2366.4,0.0011]
[1769885421790,0.2335703,2368.4,2366.4,0.0011]
[1769885421987,0.1024,2368.1,2365.4,0.0019]
[1769885422312,9.26207061,2368.5,2365.7,1.05674433]
[1769885422313,0.0008,2367.6,2365.7,1.05674433]
[1769885422527,0.0008,2367.6,2365.7,4.22706505]
[1769885422686,0.0008,2367.6,2365.4,0.0011]
[1769885422887,0.0008,2367.6,2366.6,1.05634679]
[1769885423094,1.05489683,2369.9,2366.7,0.1024]
[1769885423392,0.0008,2368.8,2366.8,1.05627851]
[1769885423598,0.0008,2368.8,2365.4,0.0011]
[1769885423899,0.2335703,2368.4,2366.5,1.05639125]
[1769885424113,0.0008,2368.8,2365.8,4.3292394]
[1769885424114,0.0008,2368.8,2366.7,1.0562932]
[1769885424505,0.0008,2368.8,2366.8,0.1024]
[1769885425207,0.0008,2368.8,2365.3,0.1024]
[1769885425401,0.0008,2368.8,2365.6,0.1024]
[1769885426414,0.0008,2368.8,2365.4,4.22855808]
[1769885426629,0.1024,2368.3,2365.4,1.05800369]
[1769885426818,0.0008,2368.8,2365.8,13.05033454]
[1769885427099,0.0008,2368.8,2365.5,0.1024]
[1769885427299,0.1024,2368.4,2365.7,0.1024]
[1769885427503,9.26207061,2368.6,2365.6,1.05681433]
[1769885427705,0.1024,2368.4,2365.6,1.05681433]
[1769885427922,0.53803562,2368.6,2365.7,0.1024]
[1769885428296,0.0008,2368.8,2365.8,0.2335703]
[1769885428502,12.88499745,2368.7,2365.6,1.05681433]
[1769885428733,0.2335703,2368.2,2365.4,0.0011]
[1769885428906,9.26207061,2368.6,2365.5,1.05685851]
[1769885429104,12.78259745,2368.7,2365.5,1.05685851]
[1769885429105,0.2335703,2368.4,2365.5,1.05685851]
[1769885429328,0.2335703,2368.4,2364.4,0.01276188]
[1769885429329,13.11856775,2368.2,2364.7,4.22875698]
[1769885429530,1.0556095,2368.3,2364.7,4.22875698]
[1769885429531,13.11856775,2367.9,2364.7,4.22875698]
[1769885429734,0.2335703,2367.3,2364.8,0.1024]
[1769885430027,0.2335703,2367.3,2364.7,4.22875698]
[1769885430609,4.22243803,2368.8,2364.7,4.22875698]
[1769885430610,4.22165333,2368.8,2364.7,4.22875698]
[1769885430920,0.2335703,2367.9,2364.8,0.1024]
[1769885431334,0.1024,2368.3,2365.7,0.0011]
[1769885431632,0.2345703,2368.2,2365.7,0.0011]
[1769885431834,0.1024,2367.8,2364.8,1.05714538]
[1769885432033,0.2335703,2367.1,2364.8,1.05714538]
[1769885432604,0.2335703,2366.9,2364.8,1.05714538]
[1769885432831,0.2335703,2366.9,2364.5,0.0011]
[1769885433050,0.1024,2366.4,2364.5,0.0011]
[1769885433350,0.1024,2366.4,2364.3,0.0008]
[1769885433351,0.2335703,2365.9,2364.3,0.0008]
[1769885433531,0.1024,2366.1,2363.9,1.14002374]
[1769885433734,0.79541819,2366.2,2363.9,1.14002374]
[1769885433935,0.79541819,2366.2,2363.9,1.14000301]
[1769885435263,0.56184789,2366.2,2364.0,0.1024]
[1769885435427,4.22332967,2368.0,2364.2,0.1024]
[1769885435628,4.22374426,2367.6,2364.2,0.1024]
[1769885435825,1.05583241,2367.8,2364.2,0.1024]
[1769885436024,12.78259745,2367.4,2364.2,0.1024]
[1769885436452,1.05583241,2367.8,2364.2,0.1024]
[1769885436681,0.52791621,2367.7,2364.2,0.1024]
[1769885436847,0.1024,2367.6,2364.2,0.1024]
[1769885437034,0.1024,2367.6,2364.1,1.05748487]
[1769885437035,13.45817445,2367.6,2364.1,1.05748487]
[1769885437236,0.2335703,2366.8,2364.1,1.05748487]
[1769885437459,0.3359703,2366.6,2363.9,0.0824617]
[1769885437673,0.89772891,2366.6,2363.9,1.14002955]
[1769885437828,0.89772891,2366.6,2363.9,1.14002185]
[1769885438240,0.56175861,2366.6,2363.9,14.40007863]
[1769885438532,0.2335703,2367.3,2364.0,13.36245678]
[1769885438930,1.0559662,2367.5,2364.0,13.36245678]
[1769885439361,0.1024,2367.4,2364.0,13.36245678]
[1769885439768,4.22385785,2367.6,2364.2,13.36245678]
[1769885439978,4.22385785,2367.6,2364.5,0.1024]
[1769885440181,1.58383781,2367.7,2364.5,0.1024]
[1769885440182,0.52791621,2367.7,2365.1,0.1024]
[1769885440344,1.05668553,2368.2,2365.9,0.1024]
[1769885440556,0.2335703,2368.1,2365.9,0.1024]
[1769885440884,0.1024,2368.0,2365.0,0.1024]
[1769885441168,0.2335703,2367.5,2364.4,15.39092746]
[1769885441475,0.55128722,2368.1,2365.0,13.18398483]
[1769885441654,0.55128722,2368.1,2365.9,13.28638483]
[1769885441855,0.001,2368.2,2365.9,13.28638483]
[1769885442564,0.001,2368.2,2366.1,13.28638483]
[1769885443252,0.001,2368.2,2366.1,0.1024]
[1769885443570,0.001,2368.2,2365.8,1.05672499]
[1769885443571,0.001,2368.2,2365.9,0.1024]
[1769885443765,0.001,2368.0,2366.1,0.1024]
[1769885444277,0.001,2368.0,2366.3,0.1024]
[1769885444776,0.001,2368.2,2366.6,0.1024]
[1769885445073,0.001,2368.2,2366.8,0.1024]
[1769885445676,0.001,2368.2,2365.9,4.22654268]
[1769885445887,0.001,2368.2,2365.8,1.05672499]
[1769885445888,0.2335703,2368.0,2365.8,1.05672499]
[1769885446059,0.2335703,2367.8,2365.8,1.05672499]
[1769885446379,0.13225579,2367.7,2365.7,1.05674191]
[1769885446565,0.2335703,2367.4,2364.5,4.84652376]
[1769885446882,0.2335703,2366.8,2364.5,0.61743464]
[1769885447052,12.64465943,2368.1,2364.4,0.0011]
[1769885447251,0.2335703,2367.9,2365.7,1.05676476]
[1769885447450,0.2335703,2367.7,2365.7,1.05676476]
[1769885447781,0.2335703,2367.7,2365.6,4.22707866]
[1769885447782,0.2335703,2367.4,2365.2,1.05699306]
[1769885447989,0.2335703,2367.2,2365.2,1.05699306]
[1769885448279,0.2335703,2367.0,2364.4,0.0011]
[1769885448479,0.2335703,2367.0,2364.8,4.22865766]
[1769885448480,0.23470642,2366.9,2364.8,4.22865766]
[1769885448682,0.23470642,2366.9,2364.4,4.23042141]
[1769885448683,0.2335703,2366.7,2364.9,1.05708908]
[1769885448851,0.2335703,2366.5,2364.4,0.0011]
[1769885449052,0.2335703,2366.3,2364.7,1.05717814]
[1769885449263,0.2335703,2366.3,2364.4,0.0011]
[1769885449264,0.13231434,2366.2,2364.9,1.05712176]
[1769885449469,0.2335703,2367.1,2364.6,0.1024]
[1769885449777,0.2335703,2366.7,2364.4,0.0011]
[1769885450083,0.13230455,2366.6,2364.4,0.0011]
[1769885450287,0.13230455,2366.5,2364.4,0.0011]
[1769885450491,0.13230455,2366.4,2364.4,0.0011]
[1769885450665,0.13230455,2366.3,2364.4,0.0011]
[1769885450856,0.2335703,2366.8,2364.4,0.0011]
[1769885450857,0.13230455,2366.2,2364.4,0.0011]
[1769885451187,0.36587485,2366.1,2364.4,0.0011]
[1769885451373,0.2335703,2365.9,2364.4,0.0011]
[1769885451573,0.13230455,2365.8,2364.4,0.0011]
[1769885451893,0.2335703,2365.6,2363.7,1.0576502]
[1769885452058,0.2335703,2365.6,2362.6,4.23255331]
[1769885452059,13.25807822,2363.9,2360.9,0.01276188]
[1769885452254,13.25807822,2363.9,2359.6,13.18398483]
[1769885452255,0.1024,2363.6,2360.6,4.23607946]
[1769885452567,0.1024,2363.6,2359.6,13.18398483]
[1769885452568,0.13230455,2363.5,2359.6,13.18398483]
[1769885452783,0.2335703,2363.3,2361.6,1.05860433]
[1769885453080,0.2335703,2363.3,2361.5,4.23441734]
[1769885453081,0.132494,2363.2,2361.5,1.05863999]
[1769885453285,0.0008,2364.4,2361.5,14.24262482]
[1769885453487,0.2335703,2364.2,2362.0,0.1024]
[1769885453653,0.2335703,2364.0,2361.5,14.24262482]
[1769885453859,0.0008,2364.4,2362.2,0.1024]
[1769885453860,1.05815489,2364.4,2362.2,0.1024]
[1769885454059,0.2335703,2364.2,2361.5,1.05863999]
[1769885454280,0.2335703,2364.0,2361.5,1.07140187]
[1769885454478,0.13243422,2363.9,2361.6,0.1024]
[1769885454691,0.36600452,2363.8,2361.5,1.05863999]
[1769885454858,0.1024,2364.3,2362.0,0.01276188]
[1769885454859,0.2335703,2364.2,2362.0,0.01276188]
[1769885455058,0.13247738,2364.1,2361.8,0.01276188]
[1769885455358,0.13247738,2364.0,2361.6,0.1024]
[1769885455557,0.2335703,2364.3,2361.6,0.1024]
[1769885455558,0.52874065,2364.3,2361.6,0.1024]
[1769885455783,0.0008,2364.4,2362.1,0.1024]
[1769885455983,0.0008,2364.4,2362.1,13.29914671]
[1769885456189,0.0008,2364.4,2362.6,0.1024]
[1769885456482,0.56577232,2365.6,2363.5,13.28638483]
[1769885456658,0.56577232,2365.6,2363.0,0.01276188]
[1769885456659,0.0008,2365.6,2363.6,13.28638483]
[1769885456860,0.001,2365.4,2363.6,13.28638483]
[1769885457056,0.001,2365.4,2363.8,0.01276188]
[1769885457364,0.001,2365.4,2363.9,0.1024]
[1769885457693,1.05645179,2366.5,2363.9,13.28638483]
[1769885457892,0.13230996,2366.4,2364.1,0.1024]
[1769885458118,0.13231522,2366.3,2364.1,0.1024]
[1769885458269,0.0008,2366.6,2364.0,1.94352961]
[1769885458270,0.13231522,2366.2,2364.0,1.94352961]
[1769885458586,0.13231522,2366.2,2363.9,4.23011844]
[1769885458587,0.13231522,2366.1,2363.9,1.057537]
[1769885458776,0.0008,2366.6,2363.9,1.057537]
[1769885458777,0.2335703,2365.9,2363.9,1.057537]
[1769885458978,0.13231522,2365.8,2363.9,1.057537]
[1769885459180,0.0008,2366.6,2363.9,1.057537]
[1769885459365,0.0008,2366.6,2364.0,0.11516188]
[1769885459366,0.13234148,2366.5,2364.0,0.11516188]
[1769885459567,0.0008,2366.6,2364.2,13.28638483]
[1769885459867,0.0008,2366.6,2364.4,0.1024]
[1769885459868,0.13230335,2366.5,2364.4,0.1024]
[1769885460072,0.0008,2366.6,2364.4,0.1024]
[1769885460460,12.87822973,2366.5,2363.7,0.01276188]
[1769885460684,0.1024,2365.8,2363.9,0.01276188]
[1769885460898,0.36588129,2365.7,2362.8,4.23217939]
[1769885461095,0.2335703,2365.3,2363.3,1.05781463]
[1769885461389,9.26207061,2366.0,2362.3,1.33060091]
[1769885461390,12.74705943,2365.0,2362.3,1.33060091]
[1769885461566,0.886,2365.5,2361.8,0.0011]
[1769885461567,12.74705943,2364.2,2361.8,0.0011]
[1769885461766,12.74705943,2364.2,2361.5,0.0011]
[1769885461767,0.13231099,2364.1,2360.6,13.19784671]
[1769885462090,0.2335703,2363.7,2360.6,13.18508483]
[1769885462391,0.2335703,2363.3,2360.6,0.0011]
[1769885462592,0.2335703,2363.1,2360.6,0.01386188]
[1769885462794,0.886,2363.8,2360.6,0.01386188]
[1769885462795,12.64465943,2364.7,2361.3,0.01276188]
[1769885463011,12.64465943,2364.7,2361.2,0.01276188]
[1769885463012,0.2335703,2364.1,2361.2,0.01276188]
[1769885463169,0.2335703,2363.9,2360.5,1.07185952]
[1769885463366,0.2335703,2363.3,2360.5,1.05909764]
[1769885463566,0.1024,2363.4,2360.5,1.05909764]
[1769885463567,0.2335703,2363.1,2360.5,1.05909764]
[1769885463775,13.70188949,2364.7,2360.9,0.01276188]
[1769885464079,0.2335703,2364.4,2360.9,0.01276188]
[1769885464402,0.2335703,2364.2,2360.7,14.25575463]
[1769885464710,0.50483148,2364.1,2361.5,13.18398483]
[1769885464910,0.13246099,2364.0,2360.7,14.25575463]
[1769885465199,0.39450883,2364.0,2361.3,0.01276188]
[1769885465401,0.39450883,2364.0,2361.1,13.18398483]
[1769885465606,0.39450883,2364.0,2361.4,0.01276188]
[1769885465765,0.39450883,2364.0,2361.2,1.07154554]
[1769885466095,0.39450883,2364.0,2361.2,1.05878366]
[1769885466096,0.2335703,2363.8,2361.2,1.05878366]
[1769885466389,0.2335703,2363.4,2361.2,1.05878366]
[1769885466597,0.2335703,2363.2,2361.2,1.05878366]
[1769885466893,0.43674741,2363.1,2361.2,1.05878366]
[1769885467870,0.2335703,2363.0,2360.6,1.06015278]
[1769885468070,0.2335703,2362.8,2360.6,1.06015278]
[1769885468269,0.5737826,2362.8,2360.6,1.06015278]
[1769885468469,0.3359703,2362.6,2360.6,0.0011]
[1769885468803,0.3298982,2362.5,2360.6,0.0011]
[1769885469005,0.3298982,2362.5,2361.4,0.0011]
[1769885469207,0.43740498,2364.0,2361.5,0.1024]
[1769885469501,0.0008,2363.7,2361.5,0.1024]
[1769885469795,0.31680449,2363.6,2361.7,1.05855951]
[1769885469999,0.31680449,2363.6,2361.7,1.94555951]
[1769885470000,0.26680449,2363.6,2361.7,1.94555951]
[1769885470202,0.26680449,2363.6,2361.8,0.1024]
[1769885470632,1.32452669,2363.6,2361.7,1.05855951]
[1769885470924,1.32452669,2363.6,2360.6,0.01386188]
[1769885470925,0.2335703,2362.8,2360.6,0.0011]
[1769885471127,0.3359703,2362.6,2360.6,0.0011]
[1769885471295,0.3359703,2362.6,2360.2,0.0011]
[1769885471296,0.2335703,2362.3,2360.2,0.0011]
[1769885471497,0.40602966,2362.2,2360.3,0.1024]
[1769885471707,0.40602966,2362.2,2361.7,0.1024]
[1769885471708,0.36646728,2362.2,2361.7,0.1024]
[1769885471898,0.0008,2363.4,2361.7,1.05853239]
[1769885472342,0.0008,2363.4,2361.8,0.1024]
[1769885473033,0.0008,2363.4,2361.8,12.95389432]
[1769885473212,0.30760816,2364.1,2362.0,12.85149432]
[1769885473410,0.001,2365.4,2362.0,12.85149432]
[1769885473411,0.39995151,2365.3,2363.1,12.85149432]
[1769885473617,0.39995151,2365.3,2363.2,0.1024]
[1769885473814,0.39995151,2365.3,2363.3,1.05784284]
[1769885474307,0.39995151,2365.3,2363.4,0.1024]
[1769885474803,0.39995151,2365.3,2363.3,1.05784284]
[1769885475001,0.39995151,2365.3,2363.1,12.4872418]
[1769885475201,0.39915151,2365.3,2363.3,1.05784284]
[1769885475406,0.39915151,2365.3,2363.3,1.94484284]
[1769885475634,0.39915151,2365.3,2363.3,1.05784284]
[1769885475819,0.39915151,2365.3,2364.0,1.05752961]
[1769885476001,0.39915151,2365.3,2363.3,12.85149432]
[1769885476207,0.2335703,2365.2,2362.7,4.23238053]
[1769885476405,0.2335703,2365.0,2363.3,4.2313526]
[1769885476631,0.39915151,2365.3,2363.9,1.05755813]
[1769885477032,0.001,2365.4,2364.0,0.1024]
[1769885477333,0.0008,2366.6,2364.8,0.1024]
[1769885477534,0.0008,2366.6,2364.8,12.95389432]
[1769885477830,0.0008,2366.6,2363.9,12.8642562]
[1769885478035,0.13228594,2366.5,2363.5,4.23101315]
[1769885478221,0.2335703,2366.0,2363.5,4.23096017]
[1769885478410,0.1024,2366.3,2363.6,1.05769131]
[1769885478411,0.2335703,2365.8,2363.6,1.05769131]
[1769885478613,0.2335703,2365.6,2362.7,0.887]
[1769885478821,13.93060117,2366.3,2362.7,0.887]
[1769885478822,0.2335703,2366.0,2364.4,1.05732363]
[1769885479022,0.0008,2366.6,2364.8,1.05716207]
[1769885479232,0.13230941,2366.5,2364.8,1.05716207]
[1769885479438,0.0008,2366.6,2364.8,1.05716207]
[1769885479634,0.0008,2366.6,2364.6,4.22868741]
[1769885479635,13.93060117,2366.1,2363.0,0.01276188]
[1769885479935,0.1024,2365.6,2362.9,0.0008]
[1769885480133,0.2335703,2365.2,2362.9,0.0008]
[1769885480336,0.2335703,2364.6,2362.9,0.0008]
[1769885480538,0.2335703,2364.0,2360.8,4.2358173]
[1769885480736,14.16417147,2364.4,2361.7,0.0008]
[1769885480737,0.1024,2363.7,2361.7,0.0008]
[1769885480952,0.36586559,2363.6,2361.7,0.0008]
[1769885481154,0.887,2363.9,2360.6,1.05904066]
[1769885481155,14.16417147,2363.0,2360.6,1.05904066]
[1769885481457,14.16417147,2363.0,2360.2,0.0019]
[1769885481458,14.26657147,2362.8,2360.2,0.0019]
[1769885481763,1.54871244,2362.9,2359.4,1.05957254]
[1769885481764,0.2335703,2361.7,2359.4,1.05957254]
[1769885481910,0.2335703,2361.7,2359.2,0.0824617]
[1769885481911,0.2335703,2361.5,2359.3,1.0596111]
[1769885482108,0.13229529,2361.4,2359.4,0.1024]
[1769885482415,3.9892434,2364.5,2359.3,1.0596111]
[1769885482416,0.2335703,2362.0,2359.3,13.91110542]
[1769885482620,0.2335703,2361.8,2359.3,13.91110542]
[1769885482822,0.2335703,2361.6,2359.3,13.91110542]
[1769885483056,13.93060117,2363.1,2359.4,12.95389432]
[1769885483225,0.2335703,2362.7,2359.4,12.95389432]
[1769885483554,4.23095616,2363.6,2359.4,12.95389432]
[1769885483555,9.31239382,2364.0,2360.7,12.85149432]
[1769885483753,1.52554412,2363.9,2360.1,0.1024]
[1769885484055,15.3242353,2363.7,2360.1,1.05926342]
[1769885484356,15.3242353,2363.7,2359.2,0.0824617]
[1769885484357,14.16417147,2362.0,2359.2,0.0824617]
[1769885484554,0.2335703,2361.6,2359.2,1.14211805]
[1769885484857,0.2335703,2361.4,2359.8,1.05938819]
[1769885485041,0.2335703,2361.8,2360.0,1.05930527]
[1769885485245,0.887,2361.9,2360.1,1.05927022]
[1769885485435,14.988265,2363.7,2360.1,1.05927311]
[1769885485640,0.13256217,2363.4,2360.2,12.95389432]
[1769885485833,1.05788761,2363.2,2360.3,1.05918739]
[1769885486033,0.13256217,2363.1,2360.3,1.05918739]
[1769885486255,0.13256217,2363.0,2360.3,1.05918739]
[1769885486449,0.13256217,2362.9,2360.3,1.05918739]
[1769885486645,0.2335703,2362.7,2360.3,1.05918739]
[1769885486953,0.64158381,2363.1,2360.2,1.05922453]
[1769885486954,0.13256217,2362.6,2360.2,1.05922453]
[1769885487160,0.13256217,2362.5,2360.2,1.0592137]
[1769885487325,13.93060117,2362.9,2360.2,1.0592137]
[1769885487326,0.13256217,2362.4,2360.2,1.0592137]
[1769885487530,0.1024,2363.0,2360.2,1.0592137]
[1769885487753,0.1024,2363.0,2360.0,4.33932907]
[1769885487754,0.2335703,2362.8,2360.0,0.1024]
[1769885487956,0.2335703,2362.8,2359.4,12.85149432]
[1769885487957,1.05815626,2362.6,2359.6,0.1024]
[1769885488137,0.53918381,2363.1,2359.6,12.95389432]
[1769885488335,0.13252893,2363.0,2360.0,12.85149432]